bitfinex/quotes_ETHUSD_20250730
["timestamp","ask_amount","ask_price","bid_price","bid_amount"]
[1753833601542,0.1332,3799.7,3799.6,0.001]
[1753833602367,0.628,3799.7,3799.6,0.001]
[1753833603025,1.0707,3799.7,3799.6,0.001]
[1753833604049,0.1332,3799.7,3799.6,0.001]
[1753833604221,0.1332,3799.7,3799.6,0.7674]
[1753833605041,0.1332,3799.7,3799.6,0.001]
[1753833605536,0.002,3799.7,3799.6,0.001]
[1753833605925,0.9395,3799.7,3799.6,0.001]
[1753833606325,0.97239733,3799.7,3799.6,0.001]
[1753833606753,1.78319733,3799.7,3799.6,0.001]
[1753833610229,2.33319733,3799.7,3799.6,0.001]
[1753833610638,2.3003,3799.7,3799.6,0.001]
[1753833610821,2.33319733,3799.7,3799.6,0.001]
[1753833611025,4.96498405,3799.7,3799.6,0.001]
[1753833611439,2.33319733,3799.7,3799.6,0.001]
[1753833611631,4.96498405,3799.7,3799.6,0.001]
[1753833611810,2.33319733,3799.7,3799.6,0.001]
[1753833612014,4.96498405,3799.7,3799.6,0.001]
[1753833612734,2.33319733,3799.7,3799.6,0.001]
[1753833612937,2.3003,3799.7,3799.6,0.001]
[1753833613138,2.33319733,3799.7,3799.6,0.001]
[1753833613345,4.96498405,3799.7,3799.6,0.001]
[1753833613831,2.33319733,3799.7,3799.6,0.001]
[1753833614173,2.3003,3799.7,3799.6,0.001]
[1753833614716,4.96498405,3799.7,3799.6,0.001]
[1753833615166,34.96498405,3799.7,3799.6,0.001]
[1753833615313,34.93208672,3799.7,3799.6,0.001]
[1753833615511,35.06328672,3799.7,3799.6,0.001]
[1753833617424,5.06328672,3799.7,3799.6,0.001]
[1753833617976,9.07228672,3799.7,3799.6,0.001]
[1753833620099,6.4405,3799.7,3799.6,0.001]
[1753833621191,2.4315,3799.7,3799.6,0.001]
[1753833621398,6.4405,3799.7,3799.6,0.001]
[1753833621584,0.1332,3799.7,3799.6,0.001]
[1753833621784,4.1422,3799.7,3799.6,0.001]
[1753833622501,4.94459733,3799.7,3799.6,0.001]
[1753833622813,5.88209733,3799.7,3799.6,0.001]
[1753833623010,5.8492,3799.7,3799.6,0.001]
[1753833623362,0.1332,3799.7,3799.6,0.001]
[1753833623691,4.1422,3799.7,3799.6,0.2526]
[1753833624065,4.1422,3799.7,3799.6,0.001]
[1753833624894,0.1332,3799.7,3799.6,0.001]
[1753833625099,4.1422,3799.7,3799.6,0.2526]
[1753833625963,4.1422,3799.7,3799.6,0.001]
[1753833626177,0.1332,3799.7,3799.6,0.2526]
[1753833626576,0.1332,3799.7,3799.6,0.3135]
[1753833626774,0.002,3799.7,3799.6,1.1356]
[1753833626978,4.011,3799.7,3799.6,1.1356]
[1753833629119,0.002,3799.7,3799.6,1.1356]
[1753833636912,0.002,3799.7,3799.6,1.0747]
[1753833638680,0.002,3799.7,3799.6,1.14168027]
[1753833638994,0.002,3799.7,3799.6,1.1356]
[1753833640518,0.002,3799.7,3799.6,0.8231]
[1753833641997,0.002,3799.7,3799.6,1.0747]
[1753833642819,0.002,3799.7,3799.6,0.8231]
[1753833644399,0.9462,3799.7,3799.6,0.001]
[1753833645402,0.002,3799.7,3799.6,0.001]
[1753833646301,0.002,3799.7,3799.6,0.7944]
[1753833646495,0.002,3799.7,3799.6,1.046]
[1753833647427,0.002,3799.7,3799.6,0.7944]
[1753833647630,0.002,3799.7,3799.6,1.046]
[1753833649428,0.002,3799.7,3799.6,0.7944]
[1753833649933,0.9462,3799.7,3799.6,0.001]
[1753833650437,5.0834,3799.7,3799.6,0.001]
[1753833650635,5.92899733,3799.7,3799.2,0.001]
[1753833650933,0.132,3799.3,3799.2,0.001]
[1753833651420,0.6248,3799.3,3799.2,0.001]
[1753833656027,0.65770079,3799.3,3799.2,0.001]
[1753833656430,1.92700079,3799.3,3799.2,0.001]
[1753833657039,1.8941,3799.3,3799.2,0.001]
[1753833659431,1.8941,3799.3,3799.2,0.001]
[1753833660738,5.0832,3799.3,3799.2,0.001]
[1753833662821,5.081884,3799.3,3799.2,0.001]
[1753833664800,6.42138479,3799.3,3799.2,0.001]
[1753833665001,6.42138479,3799.3,3799.1,0.001]
[1753833665002,7.00183308,3799.2,3799.1,0.001]
[1753833665183,0.8197,3798.9,3798.8,0.001]
[1753833665357,7.99060426,3798.9,3798.8,0.001]
[1753833665703,8.9103,3798.9,3798.8,0.001]
[1753833665857,9.4603,3798.9,3798.8,0.001]
[1753833667275,12.09264094,3798.9,3798.8,0.001]
[1753833668280,9.4603,3798.9,3798.8,0.001]
[1753833668600,12.09264094,3798.9,3798.8,0.001]
[1753833668807,42.09264094,3798.9,3798.8,0.001]
[1753833669766,12.09264094,3798.9,3798.8,0.001]
[1753833669968,42.09264094,3798.9,3798.8,0.001]
[1753833670660,42.22311118,3798.9,3798.8,0.001]
[1753833671292,38.21711118,3798.9,3798.8,0.001]
[1753833671613,42.42471352,3798.9,3798.8,0.001]
[1753833676686,12.42471352,3798.9,3798.8,0.001]
[1753833676987,42.42471352,3798.9,3798.8,0.001]
[1753833677642,41.32311023,3798.8,3798.7,0.001]
[1753833677992,42.4133661,3798.8,3798.7,0.001]
[1753833680038,42.4133661,3798.8,3798.7,1e-08]
[1753833680694,49.4333661,3798.8,3798.7,1e-08]
[1753833681233,49.70549189,3798.8,3798.7,1e-08]
[1753833681397,49.4333661,3798.8,3798.7,1e-08]
[1753833681600,40.2803661,3798.8,3798.7,1e-08]
[1753833681801,44.2883661,3798.8,3798.7,1e-08]
[1753833682007,44.8383661,3798.8,3798.7,1e-08]
[1753833682612,44.2883661,3798.8,3798.7,1e-08]
[1753833682804,30.7817,3798.8,3798.7,1e-08]
[1753833683009,34.7897,3798.8,3798.7,1e-08]
[1753833683204,33.7817,3798.8,3798.7,1e-08]
[1753833683409,38.3407,3798.8,3798.7,1e-08]
[1753833683762,40.97311023,3798.8,3798.7,1e-08]
[1753833683912,46.28471023,3798.8,3798.7,1e-08]
[1753833685010,37.54161813,3798.5,3798.4,0.001]
[1753833685343,45.49441813,3798.5,3798.4,0.001]
[1753833685677,46.44701813,3798.5,3798.4,0.001]
[1753833688962,0.55,3797.4,3797.1,0.041]
[1753833689164,0.682,3797.2,3797.1,0.041]
[1753833689365,4.692,3797.2,3797.1,0.2926]
[1753833689928,4.142,3797.2,3797.1,1.1108]
[1753833690129,0.132,3797.2,3797.1,1.1108]
[1753833690574,4.141,3797.2,3797.1,1.1108]
[1753833691265,0.132,3797.4,3797.2,0.761]
[1753833691469,4.01,3797.3,3797.2,0.761]
[1753833691762,4.012,3797.3,3797.2,0.893]
[1753833691962,4.012,3797.3,3797.2,1.2085]
[1753833693666,4.012,3797.3,3797.2,1.0765]
[1753833694735,4.012,3797.3,3797.2,0.761]
[1753833694981,4.144,3797.3,3797.2,1.0126]
[1753833695938,4.144,3797.3,3797.2,1.0765]
[1753833696453,4.144,3797.3,3797.2,1.0126]
[1753833697435,4.144,3797.3,3797.2,0.761]
[1753833698735,5.0595,3797.3,3797.1,0.041]
[1753833699571,4.6222,3797.3,3797.1,0.041]
[1753833699780,4.144,3797.3,3797.1,0.041]
[1753833701078,4.6222,3797.3,3797.1,0.041]
[1753833701259,4.144,3797.3,3797.1,0.041]
[1753833703280,4.144,3797.3,3797.1,0.2926]
[1753833704969,4.144,3797.3,3797.1,0.041]
[1753833705976,4.6222,3797.3,3797.1,0.041]
[1753833708338,5.0595,3797.3,3797.1,0.041]
[1753833709235,0.94841899,3797.2,3797.1,0.041]
[1753833709661,0.9155,3797.2,3797.1,0.041]
[1753833713204,4.4655,3797.2,3797.1,0.041]
[1753833713393,7.09901943,3797.2,3797.1,0.041]
[1753833713800,4.4655,3797.2,3797.1,0.041]
[1753833715116,7.09901943,3797.2,3797.1,0.041]
[1753833715678,4.4655,3797.2,3797.1,0.041]
[1753833715894,7.09901943,3797.2,3797.1,0.041]
[1753833717005,4.4655,3797.2,3797.1,0.041]
[1753833719022,4.4655,3797.2,3796.1,0.04]
[1753833719023,1.583,3796.6,3796.1,0.04]
[1753833719174,6.18414741,3796.3,3796.1,0.04]
[1753833719374,4.574,3796.2,3796.1,0.04]
[1753833719583,5.4895,3796.2,3796.1,0.04]
[1753833720024,5.4935,3796.2,3796.1,0.04]
[1753833720202,38.12771316,3796.2,3796.1,0.04]
[1753833720588,5.4935,3796.2,3796.1,0.04]
[1753833720899,5.4955,3796.2,3796.1,0.04]
[1753833721098,8.4955,3796.2,3796.1,0.04]
[1753833721487,3.55,3796.2,3796.1,0.04]
[1753833721687,37.61292766,3796.2,3796.1,0.04]
[1753833721910,8.5219,3796.2,3796.1,0.04]
[1753833723608,7.582,3796.2,3796.1,0.04]
[1753833724188,8.0545,3796.2,3796.1,0.04]
[1753833724393,7.582,3796.2,3796.1,0.04]
[1753833724931,7.77635148,3796.2,3796.1,0.04]
[1753833725135,9.48715148,3796.2,3796.1,0.04]
[1753833725335,30.0,3795.8,3795.1,0.04]
[1753833725625,7.583,3795.7,3795.1,0.04]
[1753833725833,0.55,3795.5,3795.1,0.04]
[1753833725991,3.55,3795.3,3795.1,0.04]
[1753833726195,7.596,3795.2,3795.1,0.04]
[1753833726538,8.5379,3795.2,3795.1,0.04]
[1753833727621,8.5379,3795.2,3794.4,200.0]
[1753833727622,2.63504611,3795.0,3794.4,200.0]
[1753833727807,6.18531458,3794.7,3794.4,200.0]
[1753833728011,3.55,3794.5,3794.4,200.0]
[1753833728210,7.603,3794.5,3794.4,200.0]
[1753833728417,8.5449,3794.5,3794.4,200.0]
[1753833728640,7.603,3794.5,3794.4,200.0]
[1753833729043,7.735,3794.5,3794.4,200.0]
[1753833729252,8.2075,3794.5,3794.4,200.0]
[1753833729750,7.735,3794.5,3794.4,200.0]
[1753833730442,8.6769,3794.5,3794.4,200.0]
[1753833731449,41.97959333,3794.5,3794.4,194.53409463]
[1753833734537,37.37659333,3794.5,3794.4,194.53409463]
[1753833734724,7.064,3794.5,3794.4,194.53409463]
[1753833735050,7.74854726,3794.5,3794.4,194.53409463]
[1753833735555,8.22104726,3794.5,3794.4,194.53409463]
[1753833736152,7.74854726,3794.5,3794.4,194.53409463]
[1753833739445,7.063,3794.5,3794.4,194.99659463]
[1753833739746,7.063,3794.5,3794.4,194.53409463]
[1753833741441,7.195,3794.5,3794.4,194.53409463]
[1753833742608,0.132,3794.5,3794.4,194.53409463]
[1753833742948,4.192,3794.5,3794.4,195.56129463]
[1753833743315,0.132,3794.5,3794.4,195.56129463]
[1753833743514,4.191,3794.5,3794.4,195.56129463]
[1753833744311,0.132,3794.5,3794.4,195.56129463]
[1753833744544,4.191,3794.5,3794.4,195.56129463]
[1753833745412,0.132,3794.5,3794.4,195.56129463]
[1753833745649,0.55,3795.4,3794.4,194.78569463]
[1753833745810,0.132,3794.6,3794.5,0.2516]
[1753833746016,4.19,3794.6,3794.5,0.2516]
[1753833746216,4.19,3794.6,3794.5,1.0125]
[1753833747022,4.058,3794.6,3794.5,1.0125]
[1753833747354,0.132,3794.7,3794.5,0.2516]
[1753833747650,0.132,3794.7,3794.6,0.7944]
[1753833747832,3.13389918,3795.6,3794.6,1.046]
[1753833748027,0.132,3794.9,3794.7,0.2516]
[1753833748360,0.132,3794.9,3794.8,0.7722]
[1753833748534,4.189,3794.9,3794.8,0.7722]
[1753833748730,4.189,3794.9,3794.8,1.0238]
[1753833748935,4.057,3794.9,3794.8,1.0238]
[1753833750257,4.5295,3794.9,3794.8,0.7722]
[1753833750622,4.5295,3794.9,3794.5,0.7571]
[1753833750856,0.4725,3794.8,3794.5,0.7571]
[1753833751052,4.057,3794.9,3794.5,0.7571]
[1753833751253,0.4725,3794.7,3794.5,0.7571]
[1753833751553,4.057,3794.9,3794.5,0.7571]
[1753833751745,4.056,3794.8,3794.5,1.0087]
[1753833751924,4.056,3794.7,3794.5,1.0087]
[1753833752461,3.13389918,3795.6,3794.7,0.7702]
[1753833752462,0.13389918,3795.6,3794.7,0.7702]
[1753833752753,4.055,3795.5,3794.9,0.7702]
[1753833752957,4.055,3795.5,3795.0,0.2516]
[1753833753260,4.055,3795.5,3795.1,0.7702]
[1753833753463,4.055,3795.5,3795.1,1.0218]
[1753833755773,4.055,3795.5,3795.1,0.7702]
[1753833755977,6.335,3795.7,3795.1,0.7702]
[1753833756180,4.054,3795.6,3795.1,0.7702]
[1753833756552,0.4655,3795.5,3795.1,0.7702]
[1753833757112,0.4655,3795.4,3795.1,0.7702]
[1753833757257,0.49843547,3795.3,3794.5,0.8069]
[1753833757456,4.052,3795.2,3794.5,0.8069]
[1753833757898,0.55,3795.0,3794.4,194.53509463]
[1753833758051,1.363,3795.0,3794.4,194.53509463]
[1753833758248,0.4706,3794.9,3794.4,194.53509463]
[1753833758449,4.054,3794.8,3794.4,194.53509463]
[1753833758649,0.4706,3794.7,3794.4,194.53509463]
[1753833758861,0.4706,3794.6,3794.4,194.53509463]
[1753833759359,3.0,3794.7,3794.4,194.53509463]
[1753833759560,3.0,3794.5,3794.4,195.33799463]
[1753833760050,3.132,3794.5,3794.4,195.33799463]
[1753833760685,3.132,3794.5,3794.4,194.53509463]
[1753833760686,3.6026,3794.5,3794.4,194.53509463]
[1753833760896,4.0681,3794.5,3794.4,194.53509463]
[1753833761085,4.845,3794.5,3794.4,194.53509463]
[1753833762915,3.5975,3794.5,3794.4,194.53509463]
[1753833763203,4.187,3794.5,3794.4,194.53509463]
[1753833763359,4.187,3794.5,3794.4,195.33229463]
[1753833763973,0.4706,3795.2,3794.4,195.77119463]
[1753833764276,0.132,3794.7,3794.4,196.02279463]
[1753833764590,4.056,3794.6,3794.5,0.4389]
[1753833765313,4.056,3794.6,3794.4,195.33229463]
[1753833768380,0.4655,3794.5,3794.4,195.33229463]
[1753833768582,0.5975,3794.5,3794.4,195.33229463]
[1753833768900,0.5975,3794.5,3794.4,194.53509463]
[1753833769510,5.1211,3794.5,3794.4,194.53509463]
[1753833772303,4.185,3794.5,3794.4,194.53509463]
[1753833773479,4.183,3794.5,3794.4,194.53509463]
[1753833775309,0.132,3794.5,3794.4,194.97399463]
[1753833775512,4.183,3794.5,3794.4,194.53509463]
[1753833777279,4.181,3794.5,3794.4,194.53509463]
[1753833781525,5.1171,3794.5,3794.4,194.53509463]
[1753833783187,4.179,3794.5,3794.4,194.53509463]
[1753833783440,4.179,3794.5,3794.4,195.32289463]
[1753833783441,4.178,3794.5,3794.4,195.32289463]
[1753833784101,4.179,3794.5,3794.4,195.76039463]
[1753833784616,4.179,3794.5,3794.4,195.32289463]
[1753833786210,4.178,3794.5,3794.4,195.32289463]
[1753833786708,4.045,3794.5,3794.4,196.01199463]
[1753833787643,4.045,3794.5,3794.4,195.32289463]
[1753833787840,4.5043,3794.5,3794.4,195.32289463]
[1753833789451,4.045,3794.5,3794.4,195.32289463]
[1753833790212,4.5043,3794.5,3794.4,195.32289463]
[1753833790542,4.5043,3794.5,3794.4,194.53509463]
[1753833790707,4.9649,3794.5,3794.4,194.53509463]
[1753833793157,4.5043,3794.5,3794.4,194.53509463]
[1753833793708,0.134,3794.6,3794.4,194.53509463]
[1753833793904,4.042,3794.5,3794.4,194.53509463]
[1753833795339,4.5013,3794.5,3794.4,194.53509463]
[1753833795544,0.134,3794.6,3794.4,194.53509463]
[1753833795756,4.04,3794.5,3794.4,194.53509463]
[1753833796519,4.04,3794.5,3794.4,194.97259463]
[1753833796722,4.04,3794.5,3794.4,194.53509463]
[1753833796934,4.4993,3794.5,3794.4,194.53509463]
[1753833799663,4.9599,3794.5,3794.4,194.53509463]
[1753833800877,4.9619,3794.5,3794.4,194.53509463]
[1753833801945,4.5013,3794.5,3794.4,194.53509463]
[1753833803848,4.9619,3794.5,3794.4,194.53509463]
[1753833804787,4.5013,3794.5,3794.4,194.53509463]
[1753833806134,0.002,3794.5,3794.4,194.53509463]
[1753833806471,4.036,3794.5,3794.4,196.03319463]
[1753833806643,4.036,3794.5,3794.4,196.16519463]
[1753833807169,4.037,3794.5,3794.4,196.16519463]
[1753833807732,4.037,3794.5,3794.4,195.47609463]
[1753833807963,4.037,3794.5,3794.4,195.34409463]
[1753833808143,4.9569,3794.5,3794.4,194.53509463]
[1753833808343,4.4976,3794.5,3794.4,194.53509463]
[1753833808979,4.037,3794.5,3794.4,194.53509463]
[1753833810574,4.4976,3794.5,3794.4,194.53509463]
[1753833812982,4.037,3794.5,3794.4,194.53509463]
[1753833813275,4.4939,3794.5,3794.4,194.53509463]
[1753833813504,5.3104,3794.5,3794.4,194.53509463]
[1753833814185,5.8604,3794.5,3794.4,194.53509463]
[1753833814495,8.8604,3794.5,3794.4,194.53509463]
[1753833814674,11.49579333,3794.5,3794.4,194.53509463]
[1753833814988,8.8604,3794.5,3794.4,194.53509463]
[1753833816981,11.49579333,3794.5,3794.4,194.53509463]
[1753833818088,8.8604,3794.5,3794.4,194.53509463]
[1753833818766,11.49579333,3794.5,3794.4,194.53509463]
[1753833818966,8.8604,3794.5,3794.4,194.53509463]
[1753833819401,11.49579333,3794.5,3794.4,194.53509463]
[1753833819758,8.8604,3794.5,3794.4,194.53509463]
[1753833820204,8.4005,3794.5,3794.4,194.53509463]
[1753833820578,8.8574,3794.5,3794.4,194.53509463]
[1753833820894,9.3367,3794.5,3794.4,194.53509463]
[1753833821509,5.3047,3794.5,3794.4,194.53509463]
[1753833821659,9.3377,3794.5,3794.4,194.53509463]
[1753833821859,4.0313,3794.5,3794.4,194.53509463]
[1753833822056,3.002,3794.5,3794.4,194.53509463]
[1753833822257,4.035,3794.5,3794.4,194.53509463]
[1753833822496,4.035,3794.5,3794.4,194.97509463]
[1753833823474,4.035,3794.5,3794.4,194.53509463]
[1753833824973,5.5212,3794.5,3794.4,194.53509463]
[1753833825410,1.4882,3794.5,3794.4,194.53509463]
[1753833828267,0.002,3794.5,3794.4,194.53509463]
[1753833828468,0.9382,3794.5,3794.4,194.53509463]
[1753833834498,0.002,3794.5,3794.4,194.53509463]
[1753833834999,0.4813,3794.5,3794.4,194.53509463]
[1753833835911,0.002,3794.5,3794.4,194.53509463]
[1753833836796,0.002,3794.5,3794.4,195.22669463]
[1753833837087,4.03,3794.5,3794.4,195.97969463]
[1753833837292,4.03,3794.5,3794.4,195.72809463]
[1753833837520,4.03,3794.5,3794.4,195.28809463]
[1753833838561,4.4869,3794.5,3794.4,194.53509463]
[1753833838710,7.9662,3794.5,3794.4,194.53509463]
[1753833838888,8.5162,3794.5,3794.4,194.53509463]
[1753833839293,11.15159333,3794.5,3794.4,194.53509463]
[1753833839633,41.15159333,3794.5,3794.4,194.53509463]
[1753833839819,41.96769333,3794.5,3794.4,194.53509463]
[1753833840526,39.3323,3794.5,3794.4,194.53509463]
[1753833840907,41.96769333,3794.5,3794.4,194.53509463]
[1753833842120,8.0593,3794.5,3794.4,194.53509463]
[1753833842850,8.4905,3794.5,3794.4,194.53509463]
[1753833843343,8.0603,3794.5,3794.4,194.53509463]
[1753833843574,7.581,3794.5,3794.4,194.53509463]
[1753833843903,3.552,3794.5,3794.4,194.53509463]
[1753833844102,7.58,3794.5,3794.4,194.53509463]
[1753833844340,8.0375,3794.5,3794.4,194.53509463]
[1753833845306,8.4687,3794.5,3794.4,194.53509463]
[1753833847719,8.0375,3794.5,3794.4,194.53509463]
[1753833848814,8.4687,3794.5,3794.4,194.53509463]
[1753833850876,8.0375,3794.5,3794.4,194.53509463]
[1753833851026,8.7887,3794.5,3794.4,194.53509463]
[1753833851221,8.0375,3794.5,3794.4,194.53509463]
[1753833851623,7.027,3794.5,3794.4,194.53509463]
[1753833853877,0.002,3794.5,3794.4,196.07039463]
[1753833854041,4.025,3794.5,3794.4,196.07039463]
[1753833854888,4.025,3794.5,3794.4,195.35649463]
[1753833859352,4.4825,3794.5,3794.4,195.35649463]
[1753833859548,4.9137,3794.5,3794.4,194.53509463]
[1753833859982,8.4637,3794.5,3794.4,194.53509463]
[1753833860189,41.09909333,3794.5,3794.4,194.53509463]
[1753833860398,41.87249333,3794.5,3794.4,194.53509463]
[1753833864405,39.2371,3794.5,3794.4,194.53509463]
[1753833865304,11.87249333,3794.5,3794.4,194.53509463]
[1753833865601,41.87249333,3794.5,3794.4,194.53509463]
[1753833868654,43.45749333,3794.5,3794.4,194.53509463]
[1753833868816,41.87249333,3794.5,3794.4,194.53509463]
[1753833871311,11.87249333,3794.5,3794.4,194.53509463]
[1753833871513,41.87249333,3794.5,3794.4,194.53509463]
[1753833872030,48.20849333,3794.5,3794.4,194.53509463]
[1753833878716,49.79349333,3794.5,3794.4,194.53509463]
[1753833879044,48.20849333,3794.5,3794.4,194.53509463]
[1753833882441,52.56949333,3794.5,3794.4,192.96504953]
[1753833882657,22.56949333,3794.5,3794.4,192.96504953]
[1753833882811,52.56949333,3794.5,3794.4,192.96504953]
[1753833883006,52.56949333,3794.5,3794.4,191.39314953]
[1753833883211,59.97333755,3794.5,3794.4,183.53561692]
[1753833883519,59.97333755,3794.5,3794.4,129.97690948]
[1753833883713,59.97333755,3794.5,3794.4,123.87471188]
[1753833883907,59.97333755,3794.5,3794.4,100.98227089]
[1753833884159,59.97333755,3794.5,3794.4,45.32736265]
[1753833884961,60.11107764,3794.5,3794.4,45.32736265]
[1753833885116,60.11107764,3794.5,3794.4,37.73403004]
[1753833886130,60.11107764,3794.5,3794.4,30.14069743]
[1753833886323,60.11107764,3794.5,3794.4,28.81419743]
[1753833887550,55.53807764,3794.5,3794.4,28.81419743]
[1753833887748,53.54184009,3794.5,3794.4,28.81419743]
[1753833888043,52.5164,3794.5,3794.4,28.81419743]
[1753833888251,55.5164,3794.5,3794.4,28.81419743]
[1753833888447,55.9849,3794.5,3794.4,28.81419743]
[1753833888751,56.4567,3794.5,3794.4,28.81419743]
[1753833888948,57.0067,3794.5,3794.4,28.81419743]
[1753833889447,57.39054422,3794.5,3794.4,28.81419743]
[1753833891450,60.02593755,3794.5,3794.4,28.81419743]
[1753833892775,48.493,3794.5,3794.4,28.81419743]
[1753833892953,47.932,3794.5,3794.4,29.52599743]
[1753833893154,50.932,3794.5,3794.4,29.27439743]
[1753833893555,20.932,3794.5,3794.4,28.81419743]
[1753833893719,50.932,3794.5,3794.4,28.81419743]
[1753833898624,43.912,3794.5,3794.4,29.27439743]
[1753833899166,43.911,3794.5,3794.4,29.27439743]
[1753833900654,43.911,3794.5,3794.4,28.81419743]
[1753833900655,39.888,3794.5,3794.4,28.81419743]
[1753833900842,43.911,3794.5,3794.4,28.81419743]
[1753833901046,39.888,3794.5,3794.4,28.81419743]
[1753833901246,43.911,3794.5,3794.4,28.81419743]
[1753833901966,51.37523461,3794.5,3794.4,28.81419743]
[1753833902175,51.00139333,3794.5,3794.4,28.81419743]
[1753833902977,47.175,3794.5,3794.4,28.81419743]
[1753833903538,45.9513,3794.5,3794.4,28.81419743]
[1753833903940,46.4169,3794.5,3794.4,28.81419743]
[1753833904865,49.1929,3794.5,3794.4,28.81419743]
[1753833905030,19.1929,3794.5,3794.4,28.81419743]
[1753833905236,49.1929,3794.5,3794.4,28.81419743]
[1753833905468,49.4571,3794.5,3794.4,28.81419743]
[1753833905679,49.1929,3794.5,3794.4,28.81419743]
[1753833906439,48.7273,3794.5,3794.4,28.81419743]
[1753833906638,48.272,3794.5,3794.4,28.81419743]
[1753833907479,40.911,3794.5,3794.4,29.28069743]
[1753833907848,43.911,3794.5,3794.4,29.28069743]
[1753833908242,44.3663,3794.5,3794.4,28.81419743]
[1753833908742,43.911,3794.5,3794.4,28.81419743]
[1753833910243,13.911,3794.5,3794.4,28.81419743]
[1753833910579,43.911,3794.5,3794.4,28.81419743]
[1753833911497,46.54639333,3794.5,3794.4,28.81419743]
[1753833911779,47.46729333,3794.5,3794.4,28.81419743]
[1753833912143,47.59929333,3794.5,3794.4,28.81419743]
[1753833912390,44.4983,3794.5,3794.4,28.81419743]
[1753833914290,44.043,3794.5,3794.4,28.81419743]
[1753833915883,47.59929333,3794.5,3794.4,28.81419743]
[1753833916251,47.13369333,3794.5,3794.4,28.81419743]
[1753833916451,47.59929333,3794.5,3794.4,28.81419743]
[1753833917495,17.59929333,3794.5,3794.4,28.81419743]
[1753833917856,47.59929333,3794.5,3794.4,28.81419743]
[1753833918052,49.18429333,3794.5,3794.4,28.81419743]
[1753833918258,49.52388755,3794.5,3794.4,28.81419743]
[1753833918666,50.71442883,3794.5,3794.4,28.81419743]
[1753833918914,50.34058755,3794.5,3794.4,28.81419743]
[1753833919307,50.00099333,3794.5,3794.4,28.81419743]
[1753833919518,49.53439333,3794.5,3794.4,28.81419743]
[1753833919902,49.99999333,3794.5,3794.4,28.81419743]
[1753833921127,48.26239333,3794.5,3794.4,28.81419743]
[1753833921323,48.71769333,3794.5,3794.4,28.81419743]
[1753833922231,49.18329333,3794.5,3794.4,28.81419743]
[1753833926282,50.35138755,3794.5,3794.4,28.81419743]
[1753833927023,45.52419333,3794.5,3794.4,28.81419743]
[1753833927222,48.71769333,3794.5,3794.4,28.81419743]
[1753833928874,18.71769333,3794.5,3794.4,28.81419743]
[1753833929043,48.71769333,3794.5,3794.4,28.81419743]
[1753833930976,18.71769333,3794.5,3794.4,28.81419743]
[1753833931184,48.71769333,3794.5,3794.4,28.81419743]
[1753833931487,46.0823,3794.5,3794.4,28.81419743]
[1753833931651,46.1128,3794.5,3794.4,28.81419743]
[1753833932067,48.74819333,3794.5,3794.4,28.81419743]
[1753833932705,41.605,3794.5,3794.4,28.81419743]
[1753833932995,45.077,3794.5,3794.4,28.81419743]
[1753833933152,45.077,3794.5,3794.4,29.27299743]
[1753833933468,45.627,3794.5,3794.4,30.31059743]
[1753833933643,45.627,3794.5,3794.4,30.04769743]
[1753833934869,45.627,3794.5,3794.4,29.58889743]
[1753833935598,46.1128,3794.5,3794.4,29.58889743]
[1753833935745,46.5679,3794.5,3794.4,28.81419743]
[1753833935949,49.20329333,3794.5,3794.4,28.81419743]
[1753833936812,19.20329333,3794.5,3794.4,28.81419743]
[1753833937092,50.35128755,3794.5,3794.4,28.81419743]
[1753833938100,48.76628755,3794.5,3794.4,28.81419743]
[1753833938693,50.35128755,3794.5,3794.4,28.81419743]
[1753833941512,50.01169333,3794.5,3794.4,28.81419743]
[1753833941708,49.20329333,3794.5,3794.4,28.81419743]
[1753833942100,48.74819333,3794.5,3794.4,28.81419743]
[1753833942488,51.52819333,3794.5,3794.4,28.81419743]
[1753833943207,21.52819333,3794.5,3794.4,28.81419743]
[1753833943416,51.52819333,3794.5,3794.4,28.81419743]
[1753833944482,51.98329333,3794.5,3794.4,28.81419743]
[1753833946315,51.52819333,3794.5,3794.4,28.81419743]
[1753833946493,52.32288755,3794.5,3794.4,28.81419743]
[1753833950523,22.32288755,3794.5,3794.4,28.81419743]
[1753833950716,52.32288755,3794.5,3794.4,28.81419743]
[1753833953939,52.32288755,3794.5,3794.4,0.41218208]
[1753833953940,60.54792883,3794.5,3794.4,0.41218208]
[1753833954145,7.5506017,3794.2,3794.1,0.04]
[1753833954457,52.89439592,3794.2,3794.1,0.04]
[1753833954740,53.97305895,3794.2,3794.1,0.04]
[1753833955942,54.23725895,3794.2,3794.1,0.04]
[1753833958360,54.61110023,3794.2,3794.1,0.04]
[1753833959227,1.585,3793.8,3793.6,1e-08]
[1753833959535,53.24593393,3793.7,3793.6,1e-08]
[1753833959712,54.15388457,3793.7,3793.6,1e-08]
[1753833959913,154.15388457,3793.7,3793.6,1e-08]
[1753833960321,153.78004329,3793.7,3793.6,1e-08]
[1753833960951,123.78004329,3793.7,3793.6,1e-08]
[1753833961156,153.78004329,3793.7,3793.6,1e-08]
[1753833961553,149.75904329,3793.7,3793.6,1e-08]
[1753833961721,153.78004329,3793.7,3793.6,1e-08]
[1753833962871,153.78004329,3793.7,3793.1,0.04]
[1753833962872,41.38429653,3793.2,3793.1,0.04]
[1753833963034,45.40529653,3793.2,3793.1,0.04]
[1753833963374,46.83099075,3793.2,3793.1,0.04]
[1753833963934,16.83099075,3793.2,3793.1,0.04]
[1753833964140,46.83099075,3793.2,3793.1,0.04]
[1753833964539,47.19973203,3793.2,3793.1,0.04]
[1753833965069,17.19973203,3793.2,3793.1,0.04]